bitfinex-derivatives/quotes_SOLF0:USTF0_20250523
["timestamp","ask_amount","ask_price","bid_price","bid_amount"]
[1747982026183,5.58012447,180.47,180.44,5.542]
[1747982026376,0.03882447,180.47,180.43,0.04075386]
[1747982026780,5.58002447,180.47,180.44,5.542]
[1747982027079,0.03882447,180.47,180.43,0.04075386]
[1747982027281,5.542,180.45,180.43,0.04075386]
[1747982027483,0.03882447,180.47,180.43,0.04075386]
[1747982030484,0.03882447,180.47,180.46,5.5414]
[1747982032088,0.03882447,180.47,180.45,5.5416]
[1747982032480,0.03882447,180.47,180.43,0.04075386]
[1747982032686,5.5419,180.45,180.43,0.04075386]
[1747982032990,144.28,180.45,180.43,0.04075386]
[1747982033796,5.542,180.44,180.43,0.04075386]
[1747982037689,0.03882447,180.47,180.43,0.04075386]
[1747982037892,0.03882447,180.47,180.45,5.5417]
[1747982038098,5.57992447,180.47,180.43,0.04075386]
[1747982038289,0.03882447,180.47,180.43,0.04075386]
[1747982039398,0.03882447,180.47,180.44,5.5418]
[1747982039601,0.03882447,180.47,180.43,0.04075386]
[1747982039990,478.54,180.53,180.43,0.04075386]
[1747982040191,144.3,180.51,180.43,0.04075386]
[1747982040386,5.5404,180.5,180.46,5.5411]
[1747982040602,144.3,180.51,180.4,105.3]
[1747982041097,0.04224462,180.47,180.44,0.03978917]
[1747982041589,144.3,180.51,180.44,0.03978917]
[1747982042703,0.04200094,180.49,180.44,0.03978917]
[1747982045000,144.3,180.48,180.44,0.03978917]
[1747982049303,9.15224765,180.49,180.44,0.03978917]
[1747982049497,144.3,180.48,180.44,0.03978917]
[1747982051903,0.04200094,180.49,180.44,0.03978917]
[1747982052107,144.34200094,180.49,180.44,0.03978917]
[1747982055312,0.04200094,180.49,180.44,0.03978917]
[1747982056608,144.3,180.52,180.44,0.03978917]
[1747982057508,0.04023658,180.5,180.44,0.03978917]
[1747982058009,478.54,180.53,180.44,0.03978917]
[1747982058414,144.3,180.54,180.44,0.03978917]
[1747982058716,144.3,180.54,180.45,105.3]
[1747982058903,0.03927814,180.51,180.48,0.03983366]
[1747982059109,5.08990096,180.57,180.48,0.03983366]
[1747982059615,144.3,180.58,180.48,0.03983366]
[1747982060114,0.03932108,180.55,180.48,0.03983366]
[1747982060409,144.3,180.6,180.5,0.04101624]
[1747982061616,5.08990096,180.61,180.5,0.04101624]
[1747982061816,149.38990096,180.61,180.54,0.03543632]
[1747982062814,478.84,180.62,180.54,0.03543632]
[1747982063223,148.46990096,180.64,180.54,2.00243632]
[1747982063520,5.08990096,180.64,180.54,2.00243632]
[1747982063710,5.08990096,180.64,180.55,9.11024671]
[1747982063907,5.08990096,180.64,180.58,0.03663972]
[1747982064306,5.08990096,180.64,180.58,1.94463972]
[1747982065616,5.08990096,180.64,180.59,1.9381]
[1747982066018,478.72,180.71,180.59,1.9381]
[1747982066215,143.34,180.7,180.63,0.04088101]
[1747982072514,478.72,180.71,180.63,0.04088101]
[1747982072722,143.28,180.73,180.63,143.32088101]
[1747982073016,148.36990096,180.78,180.66,9.14898648]
[1747982073214,148.36990096,180.78,180.7,0.03806167]
[1747982073919,143.28,180.78,180.7,0.03806167]
[1747982074125,5.5332,180.74,180.7,5.57216167]
[1747982074628,5.5332,180.73,180.7,5.57216167]
[1747982074924,5.5332,180.73,180.7,0.03806167]
[1747982076018,5.5335,180.72,180.7,0.03806167]
[1747982076419,143.28,180.78,180.7,0.03806167]
[1747982076921,5.5337,180.71,180.7,0.03806167]
[1747982078421,478.42,180.82,180.7,0.03806167]
[1747982078619,143.24,180.81,180.74,0.04162558]
[1747982079012,5.5324,180.75,180.74,0.04162558]
[1747982085015,5.534,180.7,180.64,105.18]
[1747982085418,143.24,180.76,180.63,248.44]
[1747982086022,5.5343,180.69,180.68,0.04053977]
[1747982089925,5.5341,180.7,180.68,0.04053977]
[1747982090719,0.03783481,180.71,180.68,0.04053977]
[1747982090911,0.03783481,180.71,180.69,5.5341]
[1747982092327,5.57153481,180.71,180.68,5.57503977]
[1747982093328,5.5343,180.69,180.68,0.04053977]
[1747982095434,5.5359,180.64,180.61,1.8406]
[1747982096329,5.5359,180.64,180.61,7.3771]
[1747982096625,5.5727042,180.64,180.61,7.41401806]
[1747982096823,5.5361,180.63,180.61,1.87751806]
[1747982097023,5.5361,180.63,180.61,0.03691806]
[1747982098028,5.5364,180.62,180.61,0.03691806]
[1747982098232,0.0368042,180.64,180.61,0.03691806]
[1747982098431,5.5363,180.63,180.61,0.03691806]
[1747982098830,0.0368042,180.64,180.61,0.03691806]
[1747982099019,5.5364,180.62,180.61,0.03691806]
[1747982099533,5.5378,180.58,180.54,107.1744]
[1747982099735,5.5378,180.58,180.54,105.16]
[1747982100034,142.34,180.65,180.54,105.16]
[1747982100231,142.34,180.65,180.49,2.0144]
[1747982100436,9.10164012,180.62,180.55,0.04144077]
[1747982100728,5.5383,180.56,180.55,0.04144077]
[1747982100917,147.8783,180.56,180.55,0.04144077]
[1747982101437,5.5383,180.56,180.55,0.04144077]
[1747982101836,5.538,180.57,180.55,0.04144077]
[1747982102535,0.03503812,180.59,180.55,0.04144077]
[1747982103138,0.03503812,180.59,180.58,5.5377]
[1747982103437,0.03503812,180.59,180.55,0.04144077]
[1747982103636,0.03503812,180.59,180.57,5.5377]
[1747982103937,0.03503812,180.59,180.55,0.04144077]
[1747982104937,0.03503812,180.59,180.58,5.5377]
[1747982106936,0.03503812,180.59,180.55,0.04144077]
[1747982107529,142.38,180.58,180.55,0.04144077]
[1747982108041,147.9179,180.58,180.55,0.04144077]
[1747982108341,147.95263812,180.59,180.55,0.04144077]
[1747982108641,142.41503812,180.59,180.55,5.57984077]
[1747982109437,5.5379,180.58,180.55,5.57984077]
[1747982110142,5.5383,180.56,180.55,0.04144077]
[1747982110335,142.41503812,180.59,180.55,0.04144077]
[1747982110736,5.5379,180.58,180.55,0.04144077]
[1747982110938,142.41503812,180.59,180.55,0.04144077]
[1747982111232,5.5377,180.58,180.55,0.04144077]
[1747982111433,142.41503812,180.59,180.55,0.04144077]
[1747982111941,5.5379,180.58,180.55,0.04144077]
[1747982112150,142.41503812,180.59,180.55,0.04144077]
[1747982112642,0.03503812,180.59,180.55,0.04144077]
[1747982114746,5.5379,180.58,180.55,5.58004077]
[1747982115539,5.5379,180.58,180.56,5.5383]
[1747982115735,0.03503812,180.59,180.55,0.04144077]
[1747982116846,5.5383,180.56,180.55,0.04144077]
[1747982117040,147.9583,180.56,180.55,0.04144077]
[1747982117245,142.42,180.56,180.44,4.26144208]
[1747982117442,5.5402,180.5,180.47,5.5409]
[1747982117646,1.9925,180.55,180.47,5.5409]
[1747982118135,0.04230621,180.53,180.49,0.0390486]
[1747982118743,0.04230621,180.53,180.44,4.26144208]
[1747982119444,0.04230621,180.53,180.42,5.5424]
[1747982119749,0.0389854,180.49,180.46,0.04065668]
[1747982120044,142.44,180.48,180.46,0.04065668]
[1747982120239,5.5418,180.45,180.36,3.86]
[1747982120441,142.44,180.48,180.36,3.86]
[1747982120847,142.44,180.48,180.4,5.543]
[1747982121147,142.44,180.48,180.36,3.86]
[1747982121148,0.04205172,180.46,180.42,0.0379713]
[1747982121341,0.04205172,180.46,180.32,4.26144208]
[1747982121544,9.10164012,180.47,180.32,4.26144208]
[1747982121739,9.10164012,180.43,180.32,4.26144208]
[1747982121936,142.44,180.42,180.29,2.0121]
[1747982122344,0.03661327,180.37,180.34,0.04170221]
[1747982123851,0.03661327,180.37,180.35,5.5447]
[1747982124042,0.03661327,180.37,180.34,0.04170221]
[1747982124457,0.03661327,180.37,180.34,5.58650221]
[1747982124939,0.03661327,180.37,180.34,0.04170221]
[1747982125144,0.03661327,180.37,180.35,5.5445]
[1747982125852,0.03661327,180.37,180.34,5.58670221]
[1747982126048,0.03661327,180.37,180.34,0.04170221]
[1747982126447,5.58091327,180.37,180.34,0.04170221]
[1747982127156,0.03661327,180.37,180.34,0.04170221]
[1747982127550,5.5447,180.35,180.34,0.04170221]
[1747982127745,147.1847,180.35,180.34,0.04170221]
[1747982129252,5.5464,180.3,180.22,246.96]
[1747982129453,141.64,180.35,180.22,246.96]
[1747982129754,5.5451,180.34,180.3,5.5462]
[1747982129953,141.64,180.35,180.3,5.5462]
[1747982130253,5.5456,180.33,180.31,0.03845914]
[1747982130643,0.0418218,180.34,180.31,0.03845914]
[1747982132156,0.0418218,180.34,180.31,5.58415914]
[1747982132655,0.0418218,180.34,180.31,0.03845914]
[1747982133858,5.5457,180.32,180.31,0.03845914]
[1747982134057,0.0418218,180.34,180.31,0.03845914]
[1747982134356,5.5457,180.32,180.31,0.03845914]
[1747982136959,5.5454,180.33,180.31,0.03845914]
[1747982137154,0.0418218,180.34,180.31,0.03845914]
[1747982137357,5.5457,180.32,180.31,0.03845914]
[1747982137660,0.0418218,180.34,180.31,0.03845914]
[1747982138160,0.0418218,180.34,180.31,5.58415914]
[1747982138861,5.5870218,180.34,180.31,0.03845914]
[1747982139163,0.0418218,180.34,180.31,0.03845914]
[1747982140161,5.5457,180.32,180.31,0.03845914]
[1747982140363,141.72,180.32,180.31,0.03845914]
[1747982140664,147.2657,180.32,180.31,0.03845914]
[1747982144264,141.72,180.32,180.21,1.9872]
[1747982144467,9.10164012,180.31,180.15,3.9927]
[1747982144666,9.10164012,180.31,180.15,6.0045]
[1747982145266,0.03583591,180.25,180.22,0.04017266]
[1747982145461,147.2881,180.24,180.22,0.04017266]
[1747982145656,141.74,180.24,180.22,0.04017266]
[1747982145864,0.03583591,180.25,180.22,0.04017266]
[1747982146064,141.74,180.29,180.22,0.04017266]
[1747982146263,141.74,180.3,180.17,141.74]
[1747982146464,147.2865,180.3,180.23,5.5482]
[1747982146865,141.74,180.3,180.18,1.945]
[1747982147066,0.03499863,180.26,180.22,0.03546284]
[1747982148183,0.03499863,180.26,180.25,5.5478]
[1747982150186,141.78,180.29,180.28,5.5468]
[1747982150985,141.78,180.29,180.27,5.5471]
[1747982152185,141.78,180.29,180.28,5.5469]
[1747982153084,141.78,180.29,180.27,5.5471]
[1747982153278,141.78,180.29,180.26,0.03713699]
[1747982153879,141.78,180.29,180.27,5.5471]
[1747982154078,141.78,180.29,180.26,0.03713699]
[1747982154276,141.78,180.29,180.27,5.547]
[1747982154476,141.78,180.29,180.26,0.03713699]
[1747982155784,5.5471,180.28,180.26,0.03713699]
[1747982155976,141.78,180.29,180.26,5.58463699]
[1747982156181,141.78,180.29,180.26,0.03713699]
[1747982156780,5.5471,180.28,180.26,0.03713699]
[1747982157280,5.5472,180.27,180.26,0.03713699]
[1747982159284,150.88164012,180.29,180.19,1.8946]
[1747982159480,141.78,180.29,180.19,1.8946]
[1747982159788,147.3933801,180.29,180.16,10.68318655]
[1747982159986,141.78,180.29,180.16,10.68318655]
[1747982160194,5.6133801,180.26,180.16,10.68318655]
[1747982160387,0.04204925,180.24,180.21,0.03508105]
[1747982160592,141.18,180.23,180.21,0.03508105]
[1747982161591,0.04204925,180.24,180.21,0.03508105]
[1747982161787,141.2,180.23,180.21,0.03508105]
[1747982164294,146.7486,180.23,180.21,0.03508105]
[1747982164693,141.2,180.23,180.21,0.03508105]
[1747982164894,141.2,180.23,180.21,5.58398105]
[1747982165093,141.2,180.23,180.21,0.03508105]
[1747982166698,146.7485,180.23,180.21,0.03508105]
[1747982167200,141.2,180.23,180.21,0.03508105]
[1747982167400,141.2,180.23,180.21,5.58398105]
[1747982167596,0.04204925,180.24,180.21,0.03508105]
[1747982167992,0.04204925,180.24,180.22,5.5487]
[1747982170500,0.04204925,180.24,180.21,0.03508105]
[1747982170899,0.04204925,180.24,180.22,5.5485]
[1747982171301,0.04204925,180.24,180.21,0.03508105]
[1747982172000,0.04204925,180.24,180.23,5.5484]
[1747982172195,141.2,180.28,180.22,1.8716]
[1747982172389,141.2,180.3,180.23,1.9122]
[1747982173102,5.58352795,180.28,180.25,5.58331118]
[1747982173301,0.03662795,180.28,180.25,0.03571118]
[1747982173997,0.03662795,180.28,180.26,5.5475]
[1747982174197,0.03662795,180.28,180.25,0.03571118]
[1747982175204,0.03662795,180.28,180.26,5.5475]
[1747982175504,0.03662795,180.28,180.25,0.03571118]
[1747982175710,0.03662795,180.28,180.27,5.5472]
[1747982176903,5.5451,180.34,180.25,0.03571118]
[1747982177208,141.2,180.33,180.25,0.03571118]
[1747982177397,146.7455,180.33,180.29,5.5463]
[1747982177908,146.78399443,180.33,180.29,5.58222291]
[1747982178203,146.78399443,180.33,180.3,5.5462]
[1747982178504,141.23849443,180.33,180.31,5.5459]
[1747982178805,141.23849443,180.33,180.29,0.03592291]
[1747982179103,146.78399443,180.33,180.29,0.03592291]
[1747982179300,141.23849443,180.33,180.29,0.03592291]
[1747982179702,146.78389443,180.33,180.3,5.5461]
[1747982179904,141.23849443,180.33,180.29,0.03592291]
[1747982180905,0.03849443,180.33,180.29,0.03592291]
[1747982181107,5.08990096,180.39,180.3,105.4]
[1747982181308,5.08990096,180.39,180.38,5.5438]
[1747982181705,156.83290818,180.44,180.4,5.5432]
[1747982182014,0.03780157,180.42,180.4,5.5432]
[1747982182396,0.03780157,180.42,180.41,5.5429]
[1747982182714,0.03780157,180.42,180.39,0.04148406]
[1747982183404,5.5432,180.4,180.39,0.04148406]
[1747982183600,146.7032,180.4,180.39,0.04148406]
[1747982184401,146.7032,180.4,52.212,57.862592]
[1747982184402,146.7,180.4,180.28,5.5468]
[1747982184600,5.60538665,180.37,180.28,5.5468]
[1747982185002,5.5459,180.32,180.28,5.5468]
[1747982185204,146.74538665,180.34,180.25,1.8811]
[1747982185411,5.5466,180.29,180.28,0.04167118]
[1747982185608,140.88,180.29,180.27,0.04025887]
[1747982185808,140.88,180.29,180.26,0.03598184]
[1747982186101,0.04238278,180.29,180.26,0.03598184]
[1747982186308,0.04238278,180.29,180.26,5.58348184]
[1747982186509,0.04238278,180.29,180.26,0.03598184]
[1747982189615,5.5472,180.27,180.26,0.03598184]
[1747982192013,5.5469,180.28,180.26,0.03598184]
[1747982192219,0.04238278,180.29,180.26,0.03598184]
[1747982193518,5.58898278,180.29,180.26,5.58348184]
[1747982194517,0.04238278,180.29,180.27,5.5471]
[1747982194823,0.04238278,180.29,180.26,0.03598184]
[1747982195921,0.04238278,180.29,180.28,5.5469]
[1747982196814,140.9,180.35,180.28,5.54]
[1747982197013,140.9,180.39,180.3,9.14586742]
[1747982197217,140.9,180.39,180.32,5.5454]
[1747982197421,140.9,180.39,180.29,2.0164]
[1747982197610,5.5444,180.36,180.29,2.0164]
[1747982197919,0.03612395,180.34,180.31,0.04130517]
[1747982199018,5.58112395,180.34,180.31,0.04130517]
[1747982199420,5.58112395,180.34,180.31,5.58710517]
[1747982199617,5.58112395,180.34,180.31,0.04130517]
[1747982199618,140.93612395,180.34,180.31,0.04130517]
[1747982200413,5.5456,180.32,180.31,0.04130517]
[1747982201114,140.93612395,180.34,180.23,4.27051434]
[1747982201321,1.906,180.33,180.23,4.27051434]
[1747982201508,3.7912,180.33,180.24,5.5479]
[1747982201707,12.93706742,180.33,180.23,4.27051434]
[1747982201907,12.93706742,180.33,180.21,1.8658]
[1747982202111,0.03881197,180.29,180.25,0.03750514]
[1747982202307,5.5475,180.26,180.25,0.03750514]
[1747982205311,140.9,180.28,180.25,0.03750514]
[1747982206017,5.5475,180.26,180.25,0.03750514]
[1747982210723,5.5473,180.27,180.25,0.03750514]
[1747982211023,140.9,180.28,180.25,0.03750514]
[1747982211223,5.5469,180.28,180.25,0.03750514]
[1747982211423,140.92,180.27,180.25,0.03750514]
[1747982211922,146.4674,180.27,180.25,0.03750514]
[1747982213018,5.5475,180.26,180.25,0.03750514]
[1747982213619,146.4672,180.27,180.25,0.03750514]
[1747982214720,5.5469,180.28,180.25,0.03750514]
[1747982215021,147.68342744,180.37,180.26,9.14586742]
[1747982215324,147.68342744,180.37,180.27,4.0348]
[1747982215718,147.68342744,180.37,180.36,5.5444]
[1747982215921,6.76342744,180.37,180.36,5.5444]
[1747982216317,0.04188652,180.38,180.37,5.5441]
[1747982216721,0.04188652,180.38,180.35,0.04046033]
[1747982218128,5.5444,180.37,180.35,0.04046033]
[1747982218428,0.04188652,180.38,180.35,0.04046033]
[1747982218633,5.5443,180.37,180.35,0.04046033]
[1747982219232,5.5444,180.36,180.35,0.04046033]
[1747982219433,0.04188652,180.38,180.35,0.04046033]
[1747982219927,5.5443,180.37,180.35,0.04046033]
[1747982220125,0.04188652,180.38,180.35,0.04046033]
[1747982220940,5.5444,180.36,180.35,0.04046033]
[1747982221421,0.04188652,180.38,180.27,109.4348]
[1747982221624,140.56,180.4,180.27,109.4348]
[1747982221826,5.5451,180.34,180.27,109.4348]
[1747982222025,140.54,180.35,180.27,109.4348]
[1747982222229,0.04191004,180.33,180.29,0.03970933]
[1747982223033,5.58731004,180.33,180.29,0.03970933]
[1747982223239,0.04191004,180.33,180.29,5.58600933]
[1747982223430,0.04191004,180.33,180.29,0.03970933]
[1747982224436,0.04191004,180.33,180.32,5.5456]
[1747982225740,140.54,180.37,180.29,105.41970933]
[1747982226139,140.54,180.37,180.36,5.5444]
[1747982226938,0.03542996,180.38,180.37,5.5441]
[1747982227435,140.52,180.42,180.4,5.543]
[1747982228129,140.52,180.42,180.36,1.9226]
[1747982228438,0.03521987,180.41,180.37,0.04169558]
[1747982229029,0.03521987,180.41,180.4,5.5432]
[1747982229327,0.03521987,180.41,180.37,0.04169558]
[1747982230136,5.57821987,180.41,180.38,5.5436]
[1747982230328,0.03521987,180.41,180.37,0.04169558]
[1747982230730,0.03521987,180.41,180.39,5.5434]
[1747982232038,0.03521987,180.41,180.4,5.5432]
[1747982232337,0.03521987,180.41,180.37,0.04169558]
[1747982233335,0.03521987,180.41,180.38,5.5436]
[1747982233538,0.03521987,180.41,180.37,0.04169558]
[1747982233937,0.03521987,180.41,180.37,2.03189558]
[1747982234140,146.0419,180.45,180.37,2.03189558]
[1747982234335,140.5,180.45,180.37,2.03189558]
[1747982234642,5.542,180.44,180.41,5.5426]
[1747982234831,140.5,180.45,180.37,1.9902]
[1747982235133,140.5,180.45,180.39,0.04017748]
[1747982235350,0.03927031,180.43,180.41,5.5427]
[1747982236552,5.58157031,180.43,180.4,5.5431]
[1747982236741,0.03927031,180.43,180.39,0.04017748]
[1747982237147,5.5429,180.41,180.39,0.04017748]
[1747982237447,0.03927031,180.43,180.39,0.04017748]
[1747982237947,5.5432,180.4,180.39,0.04017748]
[1747982238248,146.0232,180.4,180.39,0.04017748]
[1747982239048,140.48,180.4,180.39,0.04017748]
[1747982239945,146.0232,180.4,180.39,0.04017748]
[1747982243635,140.48,180.4,180.39,0.04017748]
[1747982244342,140.48,180.4,180.39,5.58367748]
[1747982245246,0.03927031,180.43,180.39,0.04017748]
[1747982245660,0.03927031,180.43,180.42,5.5426]
[1747982246251,0.03927031,180.43,180.41,5.5428]
[1747982246952,0.03927031,180.43,180.42,5.5426]
[1747982249747,0.03927031,180.43,180.39,0.04017748]
[1747982249943,5.5432,180.4,180.39,0.04017748]
[1747982253147,5.5432,180.4,180.39,7.748e-05]
[1747982253944,139.98,180.4,180.39,7.748e-05]
[1747982254754,145.5232,180.4,180.39,7.748e-05]
[1747982256262,139.98,180.4,180.39,7.748e-05]
[1747982256654,145.5232,180.4,180.39,7.748e-05]
[1747982256854,5.5432,180.4,180.39,7.748e-05]
[1747982257050,145.5232,180.4,180.39,7.748e-05]
[1747982259246,139.98,180.41,180.39,7.748e-05]
[1747982259648,0.03927031,180.43,180.39,7.748e-05]
[1747982259853,139.98,180.42,180.39,7.748e-05]
[1747982260055,5.5429,180.41,180.39,7.748e-05]
[1747982260253,139.98,180.42,180.39,7.748e-05]
[1747982260756,5.5432,180.4,180.39,7.748e-05]
[1747982261657,5.5429,180.41,180.39,7.748e-05]
[1747982262158,139.98,180.42,180.39,7.748e-05]
[1747982263159,5.5429,180.41,180.39,7.748e-05]
[1747982263854,139.98,180.42,180.39,7.748e-05]
[1747982264461,139.98,180.42,180.41,5.5429]
[1747982264854,0.03927031,180.43,180.39,7.748e-05]
[1747982265053,0.03927031,180.43,180.42,5.5426]
[1747982266966,5.64252688,180.43,180.39,7.748e-05]
[1747982267263,5.60325657,180.42,180.39,7.748e-05]
[1747982267464,5.5432,180.4,180.39,7.748e-05]
[1747982270370,139.96,180.41,180.39,7.748e-05]
[1747982271362,5.5432,180.4,180.39,7.748e-05]
[1747982273878,145.503,180.41,180.39,7.748e-05]
[1747982274068,0.03927031,180.43,180.39,7.748e-05]
[1747982274974,5.5426,180.42,180.39,7.748e-05]
[1747982275175,0.03927031,180.43,180.39,7.748e-05]
[1747982275579,0.03927031,180.43,180.41,5.5428]
[1747982275972,0.03927031,180.43,180.39,7.748e-05]
[1747982276178,0.03927031,180.43,180.4,5.5431]
[1747982277092,0.03927031,180.43,180.39,7.748e-05]
[1747982277777,0.03927031,180.43,180.42,5.5426]
[1747982278985,0.03927031,180.43,180.39,7.748e-05]
[1747982280272,0.03927031,180.43,180.42,5.5426]
[1747982280672,139.42,180.48,180.4,3.8116]
[1747982280875,5.05619473,180.5,180.48,5.5405]
[1747982281083,5.05619473,180.5,180.4,3.8116]
[1747982281282,5.05619473,180.5,180.42,9.13199459]
[1747982281583,5.05619473,180.5,180.49,5.5404]
[1747982281885,0.04020216,180.51,180.48,0.03721357]
[1747982282189,6.76342744,180.53,180.52,5.5395]
[1747982283086,0.03520978,180.54,180.48,0.03721357]
[1747982283286,10.11090818,180.55,180.5,9.13199459]
[1747982283990,10.11090818,180.55,180.54,5.5389]
[1747982284392,0.04064112,180.56,180.53,0.04187768]
[1747982284790,0.04064112,180.56,180.55,5.5386]
[1747982284994,0.04064112,180.56,180.53,0.04187768]
[1747982285591,5.57894112,180.56,180.53,5.58077768]
[1747982286292,0.04064112,180.56,180.53,5.58077768]
[1747982286693,0.04064112,180.56,180.53,0.04187768]
[1747982287393,0.04064112,180.56,180.53,5.58077768]
[1747982287694,0.04064112,180.56,180.53,0.04187768]
[1747982287991,0.04064112,180.56,180.53,5.58107768]
[1747982288194,0.04064112,180.56,180.53,0.04187768]
[1747982288594,5.57914112,180.56,180.53,0.04187768]
[1747982288789,0.04064112,180.56,180.53,0.04187768]
[1747982289397,0.04064112,180.56,180.53,5.58077768]
[1747982289593,0.04064112,180.56,180.53,0.04187768]
[1747982291191,0.04064112,180.56,180.55,5.5386]
[1747982300800,4.112e-05,180.56,180.55,5.5386]
[1747982301110,139.32,180.63,180.6,5.5368]
[1747982301694,139.32,180.63,180.55,5.5904789]
[1747982301901,0.02454436,180.61,180.57,0.03511562]
[1747982302102,0.02454436,180.61,180.58,105.24]
[1747982302399,0.02454436,180.61,180.6,5.5371]
[1747982302702,0.02454436,180.61,180.58,105.24]
[1747982302905,0.02454436,180.61,180.59,5.5372]
[1747982304005,0.02454436,180.61,180.6,5.5371]
[1747982307804,138.86,180.67,180.66,5.5352]
[1747982308505,617.4,180.71,180.68,5.5345]
[1747982308704,617.4,180.71,180.63,5.5904789]
[1747982308903,617.4,180.71,180.65,0.03762771]
[1747982309098,1.9809,180.73,180.66,5.5904789]
[1747982309603,138.84,180.75,180.66,5.5904789]
[1747982309803,138.84,180.75,180.69,0.03585989]
[1747982310603,144.3726,180.75,180.69,0.03585989]
[1747982310806,138.84,180.75,180.69,0.03585989]
[1747982311812,144.3726,180.75,180.72,5.5333]
[1747982312412,144.3726,180.75,180.71,5.5335]
[1747982312711,138.84,180.75,180.69,0.03585989]
[1747982313212,144.3727,180.75,180.69,0.03585989]
[1747982313516,138.84,180.75,180.72,5.5333]
[1747982314115,144.3727,180.75,180.71,5.5336]
[1747982314319,144.3727,180.75,180.69,0.03585989]
[1747982314817,138.84,180.75,180.69,0.03585989]
[1747982315314,138.84,180.75,180.7,5.5338]
[1747982315511,138.84,180.75,180.69,0.03585989]
[1747982315811,5.5335,180.72,180.69,5.57015989]
[1747982316615,5.5339,180.71,180.69,0.03585989]
[1747982317406,138.84,180.75,180.69,0.03585989]
[1747982318918,5.5328,180.74,180.71,5.5335]
[1747982319218,138.84,180.75,180.69,0.03585989]
[1747982320116,5.533,180.74,180.71,5.5336]
[1747982321014,138.84,180.75,180.69,0.03585989]
[1747982321617,138.84,180.75,180.73,5.5328]
[1747982321819,138.84,180.75,180.69,0.03585989]
[1747982322216,138.84,180.75,180.73,5.5329]
[1747982322411,138.84,180.75,180.69,0.03585989]
[1747982323015,138.84,180.75,180.73,5.5329]
[1747982323220,138.84,180.75,180.69,0.03585989]
[1747982323720,138.84,180.75,180.72,5.5331]
[1747982323918,138.84,180.75,180.69,0.03585989]
[1747982325922,138.84,180.75,180.73,5.533]
[1747982326419,138.84,180.75,180.69,5.57015989]
[1747982326821,138.84,180.75,180.69,0.03585989]
[1747982327022,138.84,180.75,180.69,5.56995989]
[1747982327326,138.84,180.75,180.69,0.03585989]
[1747982327515,5.5338,180.71,180.69,0.03585989]
[1747982327916,138.84,180.75,180.6,138.76]
[1747982328123,7.5528,180.7,180.67,5.5349]
[1747982328524,2.0186,180.7,180.68,5.5346]
[1747982328724,2.0186,180.7,180.63,5.5904789]
[1747982328913,0.03585989,180.68,180.65,0.03512396]
[1747982329224,0.03585989,180.68,180.67,5.5349]
[1747982330318,5.989e-05,180.68,180.67,5.5349]
[1747982332831,140.7786,180.76,180.66,5.5904789]
[1747982333425,146.3108,180.76,180.66,5.5904789]
[1747982333819,146.3108,180.76,180.69,0.03571764]
[1747982334026,146.3108,180.76,180.73,5.5331]
[1747982334326,146.3108,180.76,180.73,5.56957071]
[1747982334623,5.5325,180.75,180.73,0.03647071]
[1747982334827,1.8641,180.79,180.73,0.03647071]
[1747982335227,7.3954,180.79,180.73,0.03647071]
[1747982335523,1.8641,180.79,180.73,0.03647071]
[1747982335723,1.8641,180.79,180.78,5.5316]
[1747982336026,6.72434926,180.88,180.77,0.03822496]
[1747982336229,5.5297,180.85,180.81,5.56954057]
[1747982336423,144.5687,180.87,180.81,0.03914057]
[1747982337424,5.5294,180.86,180.82,5.5301]
[1747982338014,5.5295,180.85,180.81,5.56964057]
[1747982338219,144.5687,180.87,180.81,0.03914057]
[1747982338726,144.5687,180.87,180.82,5.5302]
[1747982339030,5.5294,180.86,180.81,0.03914057]
[1747982339329,144.5687,180.87,180.84,5.5296]
[1747982339828,144.5687,180.87,180.85,5.5293]
[1747982340330,150.0975,180.87,180.81,0.03914057]
[1747982340626,144.5687,180.87,180.81,0.03914057]
[1747982341225,142.5406,180.87,180.81,0.03914057]
[1747982342231,142.5406,180.87,180.84,5.5297]
[1747982342439,142.5406,180.87,180.81,0.03914057]
[1747982342833,5.5293,180.86,180.82,5.5301]
[1747982343024,5.5293,180.86,180.81,0.03914057]
[1747982343423,5.5295,180.85,180.81,0.03914057]
[1747982344030,142.5406,180.87,180.81,0.03914057]